bitfinex/quotes_SOLUSD_20240606
["timestamp","ask_amount","ask_price","bid_price","bid_amount"]
[1717673271110,6.938e-05,172.88,172.87,79.0042]
[1717673275210,6.938e-05,172.88,172.87,66.7432]
[1717673275411,6.938e-05,172.88,172.87,72.5432]
[1717673278129,6.938e-05,172.88,172.87,21.4032]
[1717673278714,6.938e-05,172.88,172.87,6.4209]
[1717673279239,6.938e-05,172.88,172.87,12.8419]
[1717673279438,6.938e-05,172.88,172.87,57.8419]
[1717673279747,6.938e-05,172.88,172.87,66.4032]
[1717673280413,6.938e-05,172.88,172.87,21.4032]
[1717673282042,6.938e-05,172.88,172.87,2.1403]
[1717673282247,5.80006938,172.88,172.87,2.1403]
[1717673282416,5.80006938,172.88,172.84,9.91]
[1717673282616,5.8,172.87,172.86,2.1403]
[1717673285541,5.8,172.87,172.84,9.91]
[1717673285713,5.8,172.85,172.84,2.1406]
[1717673286145,5.8,172.85,172.83,2.1407]
[1717673286340,5.8,172.84,172.83,2.1408]
[1717673287943,5.8,172.84,172.82,2.1408]
[1717673288133,5.8,172.83,172.82,2.1408]
[1717673288641,5.8,172.83,172.81,12.051]
[1717673288841,5.8,172.82,172.81,12.051]
[1717673291351,5.8,172.82,172.8,2.1411]
[1717673291522,5.8,172.81,172.8,2.1411]
[1717673291729,2.1407,172.84,172.8,2.1411]
[1717673291936,5.8,172.81,172.8,2.1411]
[1717673295553,8.4163,172.85,172.81,2.1409]
[1717673295759,5.8,172.82,172.79,9.91]
[1717673295931,5.8,172.81,172.79,9.91]
[1717673296134,5.8,172.81,172.8,2.1412]
[1717673300631,5.80006938,172.81,172.8,2.1412]
[1717673306340,6.938e-05,172.81,172.8,2.1412]
[1717673310170,5.80006938,172.81,172.79,12.0512]
[1717673310349,5.8,172.8,172.79,12.0512]
[1717673312234,6.938e-05,172.81,172.8,2.1412]
[1717673312439,5.80006938,172.81,172.8,2.1412]
[1717673313164,6.938e-05,172.81,172.8,2.1412]
[1717673313362,5.80006938,172.81,172.8,2.1412]
[1717673317560,15.47579038,172.84,172.8,2.1412]
[1717673317761,5.8,172.81,172.8,2.1412]
[1717673320777,6.37870371,172.81,172.8,2.1412]
[1717673321074,0.57870371,172.81,172.8,2.1412]
[1717673321377,6.37870371,172.81,172.8,2.1412]
[1717673329288,6.37870371,172.81,172.79,12.0512]
[1717673331506,6.37870371,172.81,172.79,2.1412]
[1717673332297,6.37870371,172.81,172.8,2.1412]
[1717673335087,6.37870371,172.81,172.8,12.0512]
[1717673336194,6.37870371,172.81,172.8,9.91]
[1717673336999,6.37870371,172.81,172.8,12.0512]
[1717673337387,6.37870371,172.81,172.8,9.91]
[1717673339601,6.37870371,172.81,172.8,12.0512]
[1717673340194,0.57870371,172.81,172.8,12.0512]
[1717673341413,0.57870371,172.81,172.8,9.91]
[1717673343207,0.57870371,172.81,172.78,2.1414]
[1717673343415,5.8,172.79,172.74,14.1936]
[1717673343603,2.1413,172.8,172.76,2.1416]
[1717673343604,5.8,172.78,172.76,2.1416]
[1717673344415,5.8,172.77,172.76,2.1416]
[1717673345206,2.1412,172.8,172.76,2.1416]
[1717673345408,5.8,172.77,172.76,2.1416]
[1717673346499,2.1412,172.8,172.77,2.1415]
[1717673346728,5.8,172.78,172.77,2.1415]
[1717673354631,5.8,172.78,172.74,9.91]
[1717673354817,5.8,172.75,172.74,2.1418]
[1717673355939,2.1414,172.78,172.74,2.1418]
[1717673356124,5.8,172.75,172.74,2.1418]
[1717673359131,5.8,172.76,172.74,2.1418]
[1717673360444,2.1415,172.78,172.74,2.1418]
[1717673360651,0.57870371,172.75,172.74,2.1418]
[1717673362455,0.57870371,172.75,172.74,2.1418]
[1717673364926,2.1415,172.78,172.75,0.29468129]
[1717673365851,5.8,172.76,172.75,0.29468129]
[1717673366324,5.8,172.77,172.75,2.43648129]
[1717673367050,5.8,172.77,172.75,0.29468129]
[1717673369062,7.9415,172.77,172.75,0.29468129]
[1717673370269,5.8,172.77,172.75,0.29468129]
[1717673371063,7.9415,172.77,172.75,0.29468129]
[1717673375374,2.1416,172.76,172.75,0.29468129]
[1717673378763,6.4235,172.81,172.75,0.29468129]
[1717673378954,2.1411,172.81,172.77,2.1414]
[1717673379282,7.9412,172.8,172.77,2.1414]
[1717673379479,2.1412,172.8,172.76,2.1416]
[1717673379681,7.9412,172.8,172.76,2.1416]
[1717673379978,7.9412,172.8,172.77,2.1415]
[1717673380366,7.9412,172.8,172.76,2.1416]
[1717673380773,0.5788377,172.77,172.76,2.1416]
[1717673384062,0.5788377,172.77,172.76,6.4249]
[1717673397297,0.5788377,172.77,172.76,21.4166]
[1717673397471,0.5788377,172.77,172.76,48.7223]
[1717673397674,0.5788377,172.77,172.76,93.7223]
[1717673400505,0.5788377,172.77,172.76,87.9223]
[1717673400705,0.5788377,172.77,172.76,93.7223]
[1717673401607,0.5788377,172.77,172.76,87.9223]
[1717673401783,0.5788377,172.77,172.76,93.7223]
[1717673405291,0.5788377,172.77,172.76,93.8923]
[1717673405488,12.8399,172.9,172.84,2.1406]
[1717673405910,2.1402,172.88,172.84,2.1406]
[1717673406090,5.8,172.87,172.82,4.2818]
[1717673406286,5.8,172.87,172.84,2.1406]
[1717673406487,7.9402,172.88,172.84,2.1406]
[1717673406813,2.1402,172.88,172.84,2.1406]
[1717673407184,7.9402,172.88,172.84,2.1406]
[1717673407512,7.9403,172.87,172.83,2.1407]
[1717673408812,7.9403,172.87,172.84,2.1406]
[1717673409689,5.8,172.86,172.84,2.1406]
[1717673410085,5.8,172.86,172.83,2.1407]
[1717673410292,5.8,172.84,172.82,2.1408]
[1717673410493,5.8,172.83,172.79,9.91]
[1717673410709,10.7023,172.86,172.77,10.7073]
[1717673410889,5.8,172.81,172.79,2.1412]
[1717673411897,5.8,172.8,172.77,2.1415]
[1717673412101,5.8,172.78,172.77,2.1415]
[1717673412325,2.1411,172.81,172.77,2.1415]
[1717673412512,5.8,172.78,172.77,2.1415]
[1717673413216,5.8,172.79,172.78,2.1414]
[1717673413412,5.8,172.8,172.79,2.1412]
[1717673413617,2.1407,172.84,172.8,2.1411]
[1717673413922,5.8,172.81,172.8,2.1411]
[1717673414394,5.8,172.82,172.78,20.6171]
[1717673414800,5.8,172.82,172.8,2.1411]
[1717673415620,5.8,172.81,172.8,2.1411]
[1717673416004,5.8,172.81,172.79,2.1412]
[1717673416211,2.1408,172.83,172.79,2.1412]
[1717673416212,5.8,172.8,172.79,2.1412]
[1717673417527,5.505489,172.8,172.79,2.1412]
[1717673420628,6.0842262,172.8,172.79,2.1412]
[1717673421326,0.5787372,172.8,172.79,2.1412]
[1717673422009,6.3787372,172.8,172.79,2.1412]
[1717673422318,0.5787372,172.8,172.79,2.1412]
[1717673431249,0.5787372,172.8,172.78,20.6171]
[1717673431250,0.5787372,172.8,172.78,2.1413]
[1717673431550,5.8,172.79,172.78,2.1413]
[1717673433944,6.3787372,172.8,172.78,2.1413]
[1717673434140,5.8,172.79,172.78,2.1413]
[1717673437150,0.5787372,172.8,172.79,2.1413]
[1717673437444,6.3787372,172.8,172.79,2.1413]
[1717673442044,0.5787372,172.8,172.79,2.1413]
[1717673442248,6.3787372,172.8,172.79,2.1413]
[1717673444750,0.5787372,172.8,172.79,2.1413]
[1717673448838,0.5787372,172.8,172.79,6.4239]
[1717673450559,0.5787372,172.8,172.79,8.31879795]
[1717673452961,0.5787372,172.8,172.79,14.74269795]
[1717673453442,0.5787372,172.8,172.79,27.2131]
[1717673453642,0.5787372,172.8,172.79,33.7287]
[1717673455280,0.5787372,172.8,172.79,27.9287]
[1717673455458,0.5787372,172.8,172.79,33.7287]
[1717673456847,0.5787372,172.8,172.79,27.2131]
[1717673457349,0.5787372,172.8,172.79,21.4131]
[1717673458555,0.5787372,172.8,172.79,14.9892]
[1717673460449,0.5787372,172.8,172.79,21.4131]
[1717673463357,0.5787372,172.8,172.79,6.4239]
[1717673464366,6.3787372,172.8,172.78,2.1413]
[1717673464570,5.8,172.79,172.78,2.1413]
[1717673468778,5.8,172.79,172.76,4.2833]
[1717673468950,5.8,172.78,172.77,2.1415]
[1717673469779,0.5787372,172.8,172.78,2.1414]
[1717673469960,5.8,172.79,172.78,2.1414]
[1717673470464,0.5787372,172.8,172.78,2.1414]
[1717673470768,5.8,172.79,172.78,2.1414]
[1717673474777,5.8,172.79,172.77,2.1415]
[1717673476473,5.8,172.79,172.78,2.1414]
[1717673477077,5.8,172.79,172.77,2.1414]
[1717673479991,2.1417,172.76,172.73,2.142]
[1717673480171,5.8,172.78,172.7,9.91]
[1717673480172,5.8,172.74,172.7,9.91]
[1717673480376,5.8,172.73,172.71,2.1422]
[1717673480687,5.8,172.73,172.69,14.9977]
[1717673480688,8.5209372,172.72,172.69,2.1424]
[1717673480891,5.8,172.71,172.68,2.1426]
[1717673481095,5.8,172.71,172.69,2.1425]
[1717673481262,5.8,172.71,172.68,2.1426]
[1717673481470,5.8,172.7,172.68,2.1426]
[1717673482563,5.8,172.7,172.69,2.1425]
[1717673483094,5.8,172.7,172.68,2.1426]
[1717673484176,2.7209372,172.72,172.69,2.1425]
[1717673484375,0.5787372,172.72,172.67,14.1955]
[1717673484586,0.5787372,172.72,172.69,2.1424]
[1717673484785,0.5787372,172.72,172.7,2.1424]
[1717673485176,0.5787372,172.72,172.68,0.728324]
[1717673485381,0.5787372,172.72,172.69,2.1425]
[1717673487196,2.7209372,172.72,172.69,2.1425]
[1717673487497,8.5209372,172.72,172.69,2.1425]
[1717673487678,5.8,172.71,172.68,2.1426]
[1717673490127,8.5209372,172.72,172.69,2.1425]
[1717673491304,6.3787372,172.72,172.68,2.1426]
[1717673491479,5.8,172.71,172.68,2.1426]
[1717673493780,5.8,172.71,172.69,2.1425]
[1717673494712,0.5787372,172.72,172.7,2.1423]
[1717673494899,0.5787372,172.72,172.71,2.1423]
[1717673495800,0.5787372,172.72,172.71,14.9961]
[1717673496102,0.5787372,172.72,172.71,12.8538]
[1717673496719,0.5787372,172.72,172.71,22.7638]
[1717673499204,0.5787372,172.72,172.71,31.333]
[1717673499404,0.5787372,172.72,172.71,37.133]
[1717673499905,0.5787372,172.72,172.71,31.333]
[1717673507114,0.5787372,172.72,172.71,12.0523]
[1717673507614,0.5787372,172.72,172.71,2.1423]
[1717673509592,6.3787372,172.72,172.71,2.1423]
[1717673511705,6.3787372,172.72,172.69,20.6226]
[1717673511706,6.3787372,172.72,172.7,2.1423]
[1717673511901,5.8,172.71,172.7,2.1423]
[1717673513016,5.8,172.71,172.69,2.1425]
[1717673513198,5.8,172.7,172.69,2.1425]
[1717673513723,5.8,172.7,172.68,2.1426]
[1717673513899,5.8,172.69,172.68,2.1426]
[1717673519427,5.8,172.7,172.69,2.1425]
[1717673520122,5.8,172.7,172.68,2.1426]
[1717673520325,5.8,172.71,172.69,2.1425]
[1717673520705,0.5787372,172.7,172.69,2.1425]
[1717673522444,6.3787372,172.7,172.69,2.1425]
[1717673523017,0.5787372,172.7,172.69,2.1425]
[1717673523634,0.5787372,172.7,172.68,2.1426]
[1717673525929,0.5787372,172.7,172.69,2.1425]
[1717673531645,0.5787372,172.7,172.68,2.1426]
[1717673540751,0.5787372,172.69,172.68,2.1426]
[1717673543937,0.5787372,172.69,172.68,6.4279]
[1717673544253,0.5787372,172.69,172.68,2.1426]
[1717673551158,0.5787372,172.69,172.68,6.4279]
[1717673552063,0.5787372,172.69,172.68,78.489]
[1717673552244,0.5787372,172.69,172.68,93.8459]
[1717673552458,0.5787372,172.69,172.68,213.8459]
[1717673553063,3.72e-05,172.69,172.68,213.8459]
[1717673553264,3.72e-05,172.69,172.68,219.6459]
[1717673553573,6.2445,172.83,172.68,219.6459]
[1717673553574,2.1408,172.83,172.79,2.1412]
[1717673553866,5.8,172.82,172.79,2.1412]
[1717673554040,7.9409,172.82,172.78,2.1413]
[1717673554850,2.141,172.81,172.77,2.1415]
[1717673555161,7.941,172.81,172.77,2.1415]
[1717673556560,5.8,172.8,172.77,2.1415]
[1717673560746,0.5788042,172.78,172.77,2.1415]
[1717673574474,0.5788042,172.78,172.77,14.9909]
[1717673574676,0.5788042,172.78,172.77,21.4156]
[1717673574881,0.5788042,172.78,172.77,22.64547808]
[1717673575179,0.5788042,172.78,172.77,16.22077808]
[1717673575567,0.5788042,172.78,172.77,14.9909]
[1717673576078,0.5788042,172.78,172.77,6.4246]
[1717673580090,0.5788042,172.78,172.77,12.8493]
[1717673582183,0.5788042,172.78,172.77,21.4156]
[1717673584967,0.5788042,172.78,172.77,27.4519]
[1717673585274,0.5788042,172.78,172.77,93.5915]
[1717673587195,0.5788042,172.78,172.77,93.9315]
[1717673600231,0.5788042,172.78,172.77,78.5919]
[1717673600729,0.5788042,172.78,172.77,72.7919]
[1717673600913,0.5788042,172.78,172.77,72.5556]
[1717673604530,0.5788042,172.78,172.77,21.4156]
[1717673622232,0.5788042,172.78,172.77,21.09225806]
[1717673640477,0.5788042,172.78,172.77,66.09225806]
[1717673641573,0.5788042,172.78,172.77,71.89225806]
[1717673642666,0.5788042,172.78,172.77,94.37955806]
[1717673643251,0.5788042,172.78,172.77,94.54955806]
[1717673643475,0.5788042,172.78,172.77,214.54955806]
[1717673644750,0.5788042,172.78,172.77,94.54955806]
[1717673652352,0.5788042,172.78,172.77,214.54955806]
[1717673655370,4.2e-06,172.78,172.77,214.54955806]
[1717673655561,4.2e-06,172.78,172.77,220.33755806]
[1717673655973,6.4857,172.93,172.87,9.91]
[1717673656154,5.8,172.91,172.88,2.1401]
[1717673656356,7.9398,172.91,172.88,2.1401]
[1717673656981,2.1398,172.91,172.88,2.1401]
[1717673657173,5.8,172.91,172.88,2.1401]
[1717673661701,5.8,172.9,172.88,2.1401]
[1717673661977,5.8,172.9,172.89,2.14]
[1717673662186,5.8,172.91,172.89,2.14]
[1717673662796,22.1397,172.92,172.89,2.14]
[1717673662984,5.8,172.91,172.89,2.14]
[1717673663194,5.8,172.91,172.88,2.1401]
[1717673663481,5.8,172.9,172.88,2.1401]
[1717673663787,2.1397,172.92,172.88,2.1401]
[1717673663956,5.8,172.9,172.88,2.1401]
[1717673668296,2.1398,172.91,172.88,2.1401]
[1717673668592,7.9398,172.91,172.88,2.1401]
[1717673671031,2.1398,172.91,172.88,2.1401]
[1717673671213,7.9398,172.91,172.88,2.1401]
[1717673673444,2.1398,172.91,172.88,2.1401]
[1717673673591,5.8,172.91,172.88,2.1401]
[1717673680317,7.9398,172.91,172.88,2.1401]
[1717673680614,2.1398,172.91,172.88,2.1401]
[1717673680787,7.9398,172.91,172.88,2.1401]
[1717673681614,5.8,172.9,172.88,2.1401]
[1717673684221,5.8,172.9,172.89,2.14]
[1717673684418,5.8,172.91,172.89,2.14]
[1717673685009,2.1397,172.92,172.89,2.14]
[1717673685222,5.8,172.91,172.89,2.14]
[1717673685426,5.8,172.91,172.88,2.1401]
[1717673685609,5.8,172.91,172.89,2.14]
[1717673687596,2.1397,172.92,172.89,2.14]
[1717673687802,5.8,172.91,172.89,2.14]
[1717673688393,7.9398,172.91,172.88,2.1401]
[1717673693833,5.8,172.91,172.89,2.14]
[1717673694028,2.1397,172.92,172.89,2.14]
[1717673694206,5.8,172.91,172.89,2.14]
[1717673694518,7.9397,172.92,172.89,2.14]
[1717673695508,2.1398,172.91,172.89,2.14]
[1717673695917,7.9397,172.92,172.89,2.14]
[1717673697202,5.8,172.91,172.89,2.14]
[1717673697400,2.1397,172.92,172.89,2.14]
[1717673697700,5.8,172.91,172.89,2.14]
[1717673697918,2.1397,172.92,172.89,2.14]
[1717673698121,5.8,172.91,172.89,2.14]
[1717673700442,8.5566,172.97,172.89,16.3301]
[1717673700618,7.9394,172.95,172.92,2.1396]
[1717673700815,13.17631112,172.99,172.93,2.1395]
[1717673700816,7.9392,172.96,172.93,2.1395]
[1717673701016,5.8,172.96,172.93,2.1395]
[1717673701276,5.8,172.96,172.94,2.1394]
[1717673701409,5.8,172.96,172.93,2.1395]
[1717673701597,7.9392,172.96,172.93,2.1395]
[1717673703050,5.8,172.96,172.93,2.1395]
[1717673705342,7.9392,172.96,172.93,2.1395]
[1717673706924,5.8,172.95,172.93,2.1395]
[1717673709159,2.1391,172.97,172.94,2.1394]
[1717673709304,5.8,172.95,172.94,2.1394]
[1717673709720,5.8,172.95,172.93,2.1395]
[1717673711718,5.8,172.95,172.94,2.1394]
[1717673713435,5.8,172.95,172.91,10.699]
[1717673713436,2.1392,172.96,172.91,14.1896]
[1717673713846,5.8,172.95,172.93,2.1395]
[1717673714345,5.8,172.94,172.93,2.1395]
[1717673715540,5.8,172.95,172.93,2.1395]
[1717673716638,2.1392,172.96,172.93,2.1395]
[1717673716859,5.8,172.95,172.93,2.1395]
[1717673718346,20.0,172.97,172.94,2.1394]
[1717673718576,5.8,172.95,172.93,2.1395]
[1717673718833,20.0,172.98,172.94,6.4184]
[1717673719166,4.2775,173.0,172.91,24.2692]
[1717673719348,2.139,172.98,172.94,2.1394]
[1717673719553,7.9391,172.97,172.94,2.1394]
[1717673719855,2.139,172.98,172.94,2.1394]
[1717673720023,5.8,172.97,172.94,2.1394]
[1717673720347,0.17,173.01,172.92,4.2793]
[1717673720645,2.1389,172.99,172.95,2.1393]
[1717673720961,5.8,172.97,172.95,2.1393]
[1717673721121,5.8,172.97,172.94,2.1394]
[1717673721330,2.1389,172.98,172.94,2.1394]
[1717673721516,5.8,172.97,172.94,2.1394]
[1717673722925,5.8,172.96,172.94,2.1394]
[1717673725842,2.139,172.98,172.94,2.1394]
[1717673726023,5.8,172.96,172.94,2.1394]
[1717673727052,2.139,172.98,172.94,2.1394]
[1717673727237,7.939,172.98,172.94,2.1394]
[1717673727561,2.139,172.98,172.95,2.1393]
[1717673727895,22.1389,172.99,172.95,2.1393]
[1717673728073,5.8,172.98,172.95,2.1393]
[1717673728433,7.9389,172.98,172.95,2.1393]
[1717673729459,2.1389,172.98,172.95,2.1393]
[1717673729843,7.9389,172.98,172.95,2.1393]
[1717673731057,7.9389,172.98,172.94,2.1394]
[1717673731252,7.9389,172.98,172.94,2.1393]
[1717673732679,2.1389,172.98,172.94,2.1393]
[1717673732875,7.9389,172.98,172.94,2.1393]
[1717673733054,7.9389,172.98,172.95,2.1393]
[1717673733252,7.9389,172.98,172.93,9.91]
[1717673733253,7.9389,172.98,172.94,2.1394]
[1717673733478,2.1389,172.98,172.94,2.1394]
[1717673733780,2.1389,172.98,172.95,2.1393]
[1717673734085,7.9389,172.98,172.94,2.1393]
[1717673735021,7.9391,172.97,172.94,2.1393]
[1717673735966,24.2777,172.99,172.94,2.1393]
[1717673736357,7.939,172.98,172.94,2.1393]
[1717673736467,7.9391,172.97,172.94,2.1393]
[1717673736671,7.9392,172.96,172.93,9.91]
[1717673736998,7.9392,172.96,172.93,12.0495]
[1717673737208,5.8,172.96,172.93,12.0495]
[1717673737365,7.9391,172.97,172.94,2.1394]
[1717673737558,2.139,172.98,172.94,2.1394]
[1717673737863,5.8,172.97,172.95,2.1393]
[1717673738595,5.8,172.97,172.94,2.1393]
[1717673742558,7.939,172.98,172.94,2.1393]
[1717673742871,2.139,172.98,172.95,2.1393]
[1717673743094,5.8,172.98,172.95,2.1393]
[1717673743788,22.1389,172.99,172.95,2.1393]
[1717673743995,7.939,172.98,172.95,2.1393]
[1717673744876,2.139,172.98,172.95,2.1393]
[1717673745191,7.9389,172.98,172.95,2.1393]
[1717673746019,22.1389,172.99,172.95,2.1393]
[1717673746516,27.9389,172.99,172.96,2.1392]
[1717673747063,20.0,172.99,172.96,2.1392]
[1717673747281,22.1388,173.0,172.96,8.1612]
[1717673747488,27.9388,173.0,172.96,8.1612]
[1717673748784,22.1388,173.0,172.96,8.1612]
[1717673749107,27.9388,173.0,172.96,8.1612]
[1717673749286,2.1388,172.99,172.96,8.1612]
[1717673749993,27.9388,173.0,172.96,8.1612]
[1717673751278,22.1388,173.0,172.96,8.1612]
[1717673751477,27.9388,173.0,172.96,8.1612]
[1717673752169,27.9388,173.0,172.97,2.139]
[1717673752376,5.8,172.99,172.96,8.1611]
[1717673752565,27.9388,173.0,172.97,2.139]
[1717673753662,27.9388,173.0,172.96,8.1611]
[1717673754669,27.9388,173.0,172.97,2.139]
[1717673754872,4.2765,173.04,172.96,6.4176]
[1717673755071,4.2765,173.04,172.99,2.1387]
[1717673755072,5.8,173.02,172.99,2.1387]
[1717673755688,5.8,173.02,172.99,12.0487]
[1717673755895,7.9384,173.02,172.99,9.91]
[1717673757001,7.9384,173.02,172.99,12.0488]
[1717673757310,5.8,173.02,172.99,12.0488]
[1717673759285,2.1384,173.03,172.99,12.0488]
[1717673759493,5.8,173.02,172.99,12.0488]
[1717673760105,5.8,173.01,172.99,12.0488]
[1717673760807,2.1384,173.03,172.99,12.0488]
[1717673760981,22.1384,173.03,172.99,12.0488]
[1717673761395,5.8,173.02,172.99,12.0488]
[1717673761618,20.0,173.03,172.99,20.6041]
[1717673761813,5.8,173.04,173.01,2.1385]
[1717673762097,20.0,173.03,173.0,2.1386]
[1717673762316,20.0,173.03,173.0,3.64600664]
[1717673762642,20.0,173.03,173.0,2.1386]
[1717673762815,7.9382,173.04,173.01,2.1385]
[1717673763022,7.9382,173.04,173.0,2.1386]
[1717673764629,8.5517,173.07,173.01,2.1385]
[1717673764789,5.8,173.04,173.01,12.0485]
[1717673765432,5.8,173.04,173.02,2.31158152]
[1717673765583,5.8,173.04,173.01,12.0485]
[1717673765584,7.9382,173.04,173.01,12.22161365]
[1717673765784,2.1382,173.04,173.01,18.5906]
[1717673766010,7.9382,173.04,173.01,16.4521]
[1717673766207,7.9381,173.05,173.01,18.5906]
[1717673766502,2.1382,173.04,173.01,16.4521]
[1717673766708,22.1382,173.04,173.01,16.4521]
[1717673766914,22.1382,173.04,173.01,18.5906]
[1717673767117,20.0,173.04,173.01,18.5906]
[1717673767290,7.9381,173.05,173.01,18.5906]
[1717673768030,7.9384,173.03,173.01,9.91]
[1717673768889,2.1384,173.03,173.01,9.91]
[1717673769088,2.1383,173.04,173.01,9.91]
[1717673769392,2.1383,173.03,173.0,2.1387]
[1717673770112,2.138,173.06,173.02,2.1384]
[1717673770294,27.9379,173.07,173.02,6.018]
[1717673770508,27.9379,173.07,173.03,2.1382]
[1717673770713,27.9379,173.07,173.03,8.5325]
[1717673771319,2.138,173.06,173.03,6.3943]
[1717673771510,7.938,173.06,173.03,6.3943]
[1717673775731,7.938,173.06,173.03,8.5326]
[1717673777813,2.138,173.06,173.03,8.5326]
[1717673778031,2.1379,173.06,173.03,8.5326]
[1717673778318,7.9379,173.06,173.03,8.5326]
[1717673779131,22.1379,173.07,173.03,8.5326]
[1717673779428,5.8,173.06,173.03,8.5326]
[1717673782140,7.938,173.06,173.03,8.5326]
[1717673782821,7.938,173.06,173.03,6.3943]
[1717673783118,7.938,173.06,173.03,8.5326]
[1717673784135,5.8,173.06,173.03,6.3943]
[1717673784708,5.8,173.06,173.04,9.91]
[1717673784912,2.1379,173.07,173.04,12.0482]
[1717673785233,7.9379,173.07,173.04,12.0482]
[1717673786753,7.9379,173.07,173.04,9.91]
[1717673787637,2.1379,173.06,173.04,9.91]
[1717673787873,7.9379,173.06,173.04,9.91]
[1717673788437,5.8,173.05,173.04,9.91]
[1717673788736,7.9381,173.05,173.04,9.91]
[1717673788925,2.1382,173.04,173.01,2.1385]
[1717673789104,7.9383,173.03,173.0,2.1386]
[1717673789327,4.2765,173.04,172.99,9.91]
[1717673789512,4.2765,173.04,172.96,4.2783]
[1717673789513,7.9387,173.0,172.97,9.91]
[1717673789723,5.8,172.99,172.97,9.91]
[1717673790545,5.8,172.99,172.97,12.049]
[1717673791077,5.8,172.99,172.96,2.1391]
[1717673791332,5.8,172.98,172.96,2.1391]
[1717673791509,5.8,172.98,172.97,2.139]
[1717673791935,5.8,172.98,172.96,2.1391]
[1717673792107,5.8,172.98,172.95,9.91]
[1717673792641,5.8,172.98,172.96,2.1392]
[1717673794247,5.8,172.98,172.97,2.139]
[1717673794823,5.8,172.98,172.94,10.697]
[1717673794824,2.1386,173.01,172.98,2.1389]
[1717673795055,5.8,173.0,172.99,2.1388]
[1717673795326,5.8,173.01,172.99,2.1388]
[1717673796031,5.8,173.01,172.98,2.1388]
[1717673796416,5.8,173.01,172.99,2.1388]
[1717673796764,5.8,173.01,172.98,2.1389]
[1717673797333,7.9386,173.01,172.98,2.1389]
[1717673798110,5.8,173.01,172.98,2.1389]
[1717673798930,5.8,173.01,172.99,2.1388]
[1717673799830,2.1384,173.03,172.99,2.1387]
[1717673800010,5.8,173.02,172.99,2.1387]
[1717673800211,7.9384,173.02,172.99,2.1387]
[1717673800837,5.8,173.02,172.99,2.1387]
[1717673801526,7.9384,173.02,172.99,2.1387]
[1717673801743,7.9384,173.02,172.98,2.1389]
[1717673801938,5.8,173.01,172.98,2.1389]
[1717673802753,5.8,173.01,172.99,2.1388]
[1717673804543,4.2765,173.04,172.99,2.1388]
[1717673804754,7.9384,173.03,173.0,2.1386]
[1717673804932,27.9382,173.04,173.0,2.1386]
[1717673805145,27.9382,173.04,173.01,2.1386]
[1717673805345,22.1382,173.04,173.01,2.1386]
[1717673805559,7.9382,173.04,173.01,2.1386]
[1717673805734,20.0,173.03,173.01,2.1386]
[1717673806357,20.0,173.03,173.0,2.1386]
[1717673807967,22.1383,173.03,173.0,2.1386]
[1717673808144,2.1383,173.03,173.0,12.0486]
[1717673808342,22.1383,173.03,173.0,12.0486]
[1717673808741,20.0,173.03,173.0,12.0486]
[1717673808963,4.2756,173.08,173.02,2.1384]
[1717673809166,5.8,173.05,173.02,2.1384]
[1717673809636,7.9381,173.05,173.02,2.1384]
[1717673809834,7.9381,173.05,173.01,8.4039]
[1717673811283,7.9381,173.05,173.02,2.1384]